bitfinex-derivatives/quotes_SOLF0:USTF0_20241203
["timestamp","ask_amount","ask_price","bid_price","bid_amount"]
[1733258717108,7.07621685,229.08,229.03,1.3665]
[1733258718406,7.07621685,229.08,229.03,2.1822]
[1733258718606,7.07621685,229.06,229.0,1.2936]
[1733258719610,7.07621685,229.06,229.03,2.1822]
[1733258719809,2.14,229.05,228.94,1.26152503]
[1733258720006,2.14,229.05,228.98,7.07621685]
[1733258720206,2.14,229.05,229.01,2.1823]
[1733258721104,2.14,229.05,228.99,2.1825]
[1733258721309,4.322,229.05,228.98,7.07621685]
[1733258721509,7.07621685,229.04,228.91,1.26127859]
[1733258721808,9.25841685,229.04,228.99,2.1826]
[1733258722315,7.07621685,229.0,228.8,4.97469738]
[1733258722510,53.88,229.1,228.87,7.07621685]
[1733258722712,2.14,229.09,228.91,7.07621685]
[1733258722909,7.07621685,229.0,228.91,7.07621685]
[1733258723109,2.14,228.99,228.86,2.6604]
[1733258723309,2.14,228.99,228.91,7.07621685]
[1733258723707,9.21621685,228.99,228.91,7.07621685]
[1733258723914,9.21621685,228.99,228.9,2.1834]
[1733258724112,9.21621685,228.99,228.9,7.07621685]
[1733258724413,2.14,228.99,228.9,7.07621685]
[1733258724710,2.14,228.99,228.87,1.3386]
[1733258724711,2.14,228.98,228.92,7.07621685]
[1733258724915,4.3623,229.15,228.94,7.07621685]
[1733258725215,7.07621685,229.04,228.99,2.1825]
[1733258725414,2.14,229.03,228.99,2.1825]
[1733258726117,2.14,229.03,228.96,7.07621685]
[1733258726312,7.07621685,229.05,228.96,7.07621685]
[1733258726613,2.14,229.04,228.96,7.07621685]
[1733258726814,2.14,229.04,228.87,3.353434]
[1733258727014,7.07621685,228.99,228.91,7.07621685]
[1733258727611,7.07621685,228.99,228.98,2.1827]
[1733258728813,2.14,229.04,228.98,2.1827]
[1733258729019,7.07621685,229.01,228.93,7.07621685]
[1733258729514,2.14,229.04,228.98,2.1826]
[1733258730615,2.14,229.04,228.9,11.07903483]
[1733258730811,4.3221,229.04,228.99,2.1826]
[1733258731014,2.14,229.04,228.99,2.1826]
[1733258731813,2.14,229.04,228.9,11.07903483]
[1733258732020,2.14,229.04,228.93,11.07903483]
[1733258732721,2.14,229.06,228.93,11.07903483]
[1733258733022,2.14,229.06,228.92,2.14]
[1733258733222,2.14,229.06,228.93,11.07903483]
[1733258733621,2.14,229.06,228.92,2.14]
[1733258733921,2.14,229.06,228.93,12.33539706]
[1733258734121,2.14,229.06,229.04,2.182]
[1733258735322,2.14,229.06,228.93,11.07903483]
[1733258735323,2.14,229.06,229.05,2.182]
[1733258736326,2.14,229.06,229.03,2.1821]
[1733258736520,2.14,229.06,228.93,11.07903483]
[1733258736726,40.86,229.17,228.93,11.07903483]
[1733258736927,11.07903483,229.09,228.93,11.07903483]
[1733258737121,2.14,229.08,228.93,11.07903483]
[1733258738618,2.14,229.08,228.97,2.1827]
[1733258738822,2.14,229.08,228.98,2.6145]
[1733258739926,4.3217,229.08,228.98,2.6145]
[1733258740920,2.14,229.08,229.04,2.1821]
[1733258741924,2.14,229.08,229.06,2.1819]
[1733258742927,2.14,229.08,228.98,2.6145]
[1733258743723,11.07903483,229.05,229.03,2.1821]
[1733258744131,11.07903483,229.05,228.98,2.6145]
[1733258744831,11.07903483,229.05,229.03,2.1821]
[1733258745832,11.07903483,229.05,228.98,2.6145]
[1733258745833,11.07903483,229.05,229.04,2.1821]
[1733258746135,11.07903483,229.05,228.98,2.6145]
[1733258746432,11.07903483,229.05,229.0,2.1825]
[1733258746626,11.07903483,229.05,228.98,2.6145]
[1733258748227,11.07903483,229.05,229.03,2.1822]
[1733258751231,11.07903483,229.05,229.04,2.1821]
[1733258751426,13.21903483,229.08,228.98,2.6145]
[1733258751627,7.08786756,229.04,228.98,2.6145]
[1733258751832,7.08786756,229.06,228.98,9.70236756]
[1733258752029,2.14,229.08,228.98,9.70236756]
[1733258752333,2.14,229.08,229.07,2.1818]
[1733258752334,9.22786756,229.08,229.07,2.1818]
[1733258752731,7.08786756,229.08,229.07,2.1818]
[1733258754730,7.08786756,229.1,229.09,2.1816]
[1733258756136,32.00687811,229.22,229.08,7.08786756]
[1733258756334,7.08786756,229.15,229.09,1.2648]
[1733258756543,7.08786756,229.15,229.09,2.5441]
[1733258757030,7.08786756,229.15,229.14,2.1811]
[1733258757233,32.00687811,229.22,229.1,7.08786756]
[1733258757435,2.18,229.23,229.15,7.08786756]
[1733258757635,9.26786756,229.24,229.15,7.08786756]
[1733258757830,7.08786756,229.24,229.15,7.08786756]
[1733258758137,7.08786756,229.24,229.1,2.18]
[1733258758138,7.08786756,229.22,229.1,2.18]
[1733258758333,7.08786756,229.2,229.11,7.08786756]
[1733258758739,7.08786756,229.18,229.1,2.18]
[1733258758939,7.08786756,229.18,229.1,7.08786756]
[1733258759937,7.08786756,229.18,229.14,2.1811]
[1733258760735,7.08786756,229.18,229.13,2.1812]
[1733258762431,7.08786756,229.18,229.14,2.1811]
[1733258762836,7.08786756,229.18,229.1,7.08786756]
[1733258763037,7.08786756,229.18,229.14,2.1811]
[1733258765738,2.18,229.22,229.09,2.5441]
[1733258765739,7.08786756,229.16,229.09,2.5441]
[1733258765941,2.20261205,229.3,229.09,2.5441]
[1733258765942,7.08786756,229.14,229.09,2.5441]
[1733258766834,7.08786756,229.12,229.09,2.5441]
[1733258767337,7.08786756,229.12,229.09,4.7257]
[1733258768037,7.08786756,229.12,229.09,2.5441]
[1733258768238,7.08786756,229.12,229.1,2.1815]
[1733258768639,7.08786756,229.12,229.09,2.5441]
[1733258769039,7.08786756,229.1,229.02,7.08786756]
[1733258769245,7.08786756,229.08,229.04,2.1821]
[1733258770240,2.14,229.09,228.99,8.47276756]
[1733258770241,7.08786756,229.06,228.99,1.3849]
[1733258770440,2.14,229.09,228.99,1.3849]
[1733258770441,7.08786756,229.04,228.99,1.3849]
[1733258770642,2.14,229.03,228.99,1.3849]
[1733258771146,7.08786756,229.02,228.98,2.61146602]
[1733258771545,7.08786756,229.0,228.98,2.61146602]
[1733258772043,7.08786756,229.02,228.98,2.61146602]
[1733258772953,7.08786756,229.0,228.98,1.25916602]
[1733258773645,2.14,229.03,228.98,3.44176602]
[1733258773847,2.14,229.03,228.98,1.25916602]
[1733258774651,2.14,229.03,228.98,3.44176602]
[1733258775743,2.14,229.03,228.98,1.25916602]
[1733258776139,4.3222,229.03,228.98,1.25916602]
[1733258776340,2.14,229.03,228.98,1.25916602]
[1733258777153,4.3222,229.03,228.98,3.44176602]
[1733258777348,11.07867432,229.05,228.98,1.25916602]
[1733258777546,11.07867432,229.13,228.98,1.25916602]
[1733258777547,11.07867432,229.08,228.98,1.25916602]
[1733258777749,2.14,229.07,229.02,2.1822]
[1733258778145,2.14,229.07,229.05,2.1819]
[1733258778654,2.14,229.07,228.94,1.2717]
[1733258778655,4.3218,229.07,229.01,2.1823]
[1733258779154,2.14,229.07,229.01,2.1823]
[1733258779957,2.14,229.07,229.02,2.1822]
[1733258780164,2.14,229.06,228.94,1.2717]
[1733258780365,2.14,229.06,229.04,2.182]
[1733258780564,2.14,229.06,228.95,1.26370986]
[1733258780764,13.26017432,229.11,228.94,1.2717]
[1733258781059,2.14,229.1,228.95,1.26368442]
[1733258781259,2.14,229.1,228.96,1.26373487]
[1733258781463,13.26017432,229.11,229.05,2.1819]
[1733258781664,2.14,229.1,229.05,2.1819]
[1733258781963,2.14,229.09,229.05,2.1819]
[1733258782661,2.14,229.09,229.03,2.1821]
[1733258782861,2.14,229.09,228.94,1.2717]
[1733258783259,2.14,229.09,229.04,2.182]
[1733258784459,4.3216,229.09,228.94,1.2717]
[1733258784667,2.14,229.09,228.94,1.2717]
[1733258785165,2.14,229.09,229.03,2.1821]
[1733258785561,2.14,229.09,228.94,1.2717]
[1733258786665,2.14,229.09,229.02,2.1822]
[1733258786862,2.14,229.09,228.94,3.4117]
[1733258787269,2.182,229.06,228.99,2.1825]
[1733258787569,2.14,229.09,228.99,2.1825]
[1733258787765,11.07867432,229.05,228.99,2.1825]
[1733258788069,11.07867432,229.02,228.9,1.26096655]
[1733258788265,11.07867432,228.99,228.88,1.2698]
[1733258788464,11.07867432,228.99,228.92,4.7965]
[1733258788465,4.3227,228.98,228.92,4.7965]
[1733258788769,2.14,228.98,228.92,2.6133]
[1733258788970,2.14,228.98,228.88,1.2698]
[1733258789167,2.1829,228.96,228.89,2.1834]
[1733258789564,2.1829,228.96,228.88,1.2698]
[1733258789961,2.1831,228.93,228.86,2.7491]
[1733258790167,2.14,228.93,228.86,2.7491]
[1733258790673,2.1833,228.92,228.86,2.7491]
[1733258791065,2.14,228.93,228.86,2.7491]
[1733258791269,13.21867432,228.93,228.8,11.07867432]
[1733258791464,13.21867432,228.93,228.79,3.8472]
[1733258791765,2.1832,228.92,228.79,3.8472]
[1733258792172,13.21867432,228.93,228.79,3.8472]
[1733258792870,11.07867432,228.93,228.79,3.8472]
[1733258793070,2.1834,228.9,228.83,2.184]
[1733258793464,2.1834,228.9,228.79,2.5478]
[1733258793672,2.1834,228.9,228.82,2.1842]
[1733258794072,2.1834,228.9,228.79,2.5478]
[1733258794073,2.14,228.92,228.86,2.1838]
[1733258794273,2.14,228.92,228.8,11.07867432]
[1733258794666,2.14,228.92,228.85,2.1838]
[1733258794865,11.07867432,228.96,228.8,11.07867432]
[1733258795066,2.14,228.95,228.83,11.07867432]
[1733258795269,2.14,228.94,228.83,11.07867432]
[1733258796174,11.07867432,228.98,228.91,2.1833]
[1733258796370,2.14,228.97,228.86,11.07867432]
[1733258796575,2.14,228.97,228.87,1.2927]
[1733258797574,2.14,228.97,228.9,2.1834]
[1733258797776,11.07867432,229.01,228.87,1.2927]
[1733258798073,2.14,229.0,228.87,1.2927]
[1733258798477,2.14,229.0,228.89,11.07867432]
[1733258798780,2.14,229.0,228.9,1.2736]
[1733258798975,2.14,229.0,228.95,2.1829]
[1733258799168,2.14,229.0,228.9,2.5765]
[1733258799570,2.18,228.99,228.9,2.5765]
[1733258800374,2.18,228.99,228.92,11.07867432]
[1733258800775,2.18,229.0,228.97,2.1827]
[1733258800975,11.07867432,229.07,228.92,11.07867432]
[1733258801280,40.9,229.17,228.96,11.07867432]
[1733258801281,2.18,229.06,228.96,11.07867432]
[1733258801482,2.18,229.05,229.01,2.1823]
[1733258801670,2.18,229.05,228.97,1.295]
[1733258802875,2.18,229.05,229.02,2.1823]
[1733258803580,2.18,229.05,229.01,2.1824]
[1733258804076,2.18,229.05,228.97,1.295]
[1733258804272,11.07867432,229.1,228.97,1.295]
[1733258804472,2.1817,229.08,229.0,2.1824]
[1733258805079,2.18,229.07,229.0,2.1824]
[1733258805473,2.1817,229.08,229.0,2.1824]
[1733258805672,2.18,229.07,229.01,2.1823]
[1733258807472,2.1817,229.08,229.01,2.1823]
[1733258807674,2.18,229.07,229.01,2.1823]
[1733258808578,4.3618,229.07,228.99,2.1824]
[1733258809077,4.3618,229.07,229.0,2.1824]
[1733258811081,4.3618,229.07,229.01,2.1823]
[1733258811679,7.08813461,229.05,229.01,2.1823]
[1733258813088,2.18,229.04,228.98,7.08813461]
[1733258813387,2.18,229.07,229.0,7.08813461]
[1733258813590,2.18,229.07,229.02,2.1821]
[1733258813591,7.08813461,229.07,229.02,2.1821]
[1733258814390,7.08813461,229.07,229.03,2.1821]
[1733258814589,7.08813461,229.07,228.98,7.08813461]
[1733258814988,7.08813461,229.07,229.03,2.1821]
[1733258817887,35.93521523,229.16,229.0,7.08813461]
[1733258818088,7.08813461,229.09,229.02,7.08813461]
[1733258818394,7.08813461,229.1,229.02,7.08813461]
[1733258818593,2.18,229.11,229.04,7.08813461]
[1733258818795,9.26813461,229.11,229.04,7.08813461]
[1733258818989,7.08813461,229.11,229.04,7.08813461]
[1733258819786,7.08813461,229.11,229.08,2.1816]
[1733258822492,9.26813461,229.12,229.08,2.1816]
[1733258822693,2.18,229.12,229.04,7.08813461]
[1733258822896,9.26813461,229.12,229.09,2.1815]
[1733258823392,7.08813461,229.12,229.09,2.1815]
[1733258824697,7.08813461,229.12,229.1,2.1815]
[1733258825097,2.18,229.13,229.06,7.08813461]
[1733258825297,9.26813461,229.13,229.06,7.08813461]
[1733258825492,9.26813461,229.13,229.11,2.1814]
[1733258826192,9.26813461,229.13,229.1,2.1814]
[1733258826395,9.26813461,229.13,229.06,7.08813461]
[1733258826593,2.18,229.13,229.06,7.08813461]
[1733258826892,2.18,229.13,229.08,7.08813461]
[1733258828299,2.14,229.14,229.08,7.08813461]
[1733258828900,2.14,229.14,229.1,2.1814]
[1733258829199,2.14,229.14,229.08,7.08813461]
[1733258829401,2.14,229.14,229.11,2.1814]
[1733258829694,2.14,229.15,229.1,7.08813461]
[1733258830397,2.14,229.15,229.13,2.1811]
[1733258830594,7.08813461,229.17,229.1,7.08813461]
[1733258830799,9.22813461,229.17,229.1,7.08813461]
[1733258831289,9.22813461,229.17,229.14,2.181]
[1733258831705,9.22813461,229.17,229.13,2.1812]
[1733258831898,2.14,229.21,229.14,7.08813461]
[1733258832096,9.22813461,229.21,229.14,7.08813461]
[1733258832494,7.08813461,229.21,229.16,7.08813461]
[1733258832997,7.08813461,229.21,229.17,2.1808]
[1733258833197,7.08813461,229.21,229.16,7.08813461]
[1733258833698,2.1804,229.22,229.16,9.26893461]
[1733258833999,9.22813461,229.24,229.16,9.26893461]
[1733258834207,2.1803,229.23,229.17,2.1807]
[1733258835200,2.1803,229.22,229.17,2.1807]
[1733258836098,2.1803,229.22,229.16,9.26903461]
[1733258836396,7.08813461,229.18,229.11,9.75233461]
[1733258836799,2.1809,229.17,229.11,11.93373461]
[1733258836995,7.08813461,229.18,229.11,9.75233461]
[1733258837593,2.1809,229.16,229.11,9.75233461]
[1733258837797,7.08813461,229.18,229.11,9.75233461]
[1733258838500,7.08813461,229.16,229.11,2.6642]
[1733258838704,7.08813461,229.16,229.11,1.3545]
[1733258839105,2.1811,229.15,229.11,1.3545]
[1733258839602,2.14,229.19,229.07,7.08813461]
[1733258839806,7.08813461,229.15,229.07,7.08813461]
[1733258840103,9.26923461,229.15,229.09,2.1816]
[1733258840303,7.08813461,229.15,229.07,7.08813461]
[1733258841400,7.08813461,229.15,229.06,8.37513461]
[1733258842001,7.08813461,229.15,229.06,1.287]
[1733258842201,7.08813461,229.15,229.07,7.08813461]
[1733258842603,7.08813461,229.13,229.06,1.287]
[1733258843602,2.1813,229.12,229.06,3.4688]
[1733258844009,2.14,229.14,229.07,7.08813461]
[1733258844303,2.1813,229.13,229.07,9.26983461]
[1733258845312,7.08813461,229.13,229.06,2.1818]
[1733258846204,7.08813461,229.13,229.05,7.08813461]
[1733258846412,7.08813461,229.13,229.05,9.27003461]
[1733258846805,7.08813461,229.13,229.05,7.08813461]
[1733258847312,2.1813,229.12,229.05,7.08813461]
[1733258848001,7.08813461,229.13,229.05,7.08813461]
[1733258848200,7.08813461,229.13,229.02,1.2873]
[1733258848201,2.14,229.14,229.07,7.08813461]
[1733258848609,4.3212,229.14,229.08,2.1816]
[1733258850011,2.1812,229.13,229.08,2.1816]
[1733258850210,2.1812,229.13,229.06,7.08813461]
[1733258850409,9.26933461,229.13,229.06,7.08813461]
[1733258851405,7.08813461,229.13,229.04,7.08813461]
[1733258852105,2.1816,229.09,229.03,2.1821]
[1733258852309,9.26973461,229.09,229.03,2.1821]
[1733258852508,11.40973461,229.09,229.03,2.1821]
[1733258853208,2.1818,229.07,229.01,2.1822]
[1733258854312,9.22813461,229.09,228.95,2.14]
[1733258854313,7.08813461,229.05,228.95,2.14]
[1733258854611,7.08813461,229.05,228.97,7.08813461]
[1733258854612,2.14,229.04,228.97,7.08813461]
[1733258854810,2.14,229.04,229.0,2.1824]
[1733258855206,2.14,229.04,228.99,7.08813461]
[1733258855406,2.14,229.04,229.02,2.1822]
[1733258856207,2.14,229.04,229.01,7.08813461]
[1733258856607,2.14,229.07,229.01,7.08813461]
[1733258856806,2.14,229.07,229.03,7.08813461]
[1733258857016,2.1814,229.12,229.05,7.08813461]
[1733258857314,2.14,229.11,229.05,7.08813461]
[1733258858016,2.14,229.11,229.06,2.1818]
[1733258858515,2.14,229.11,229.05,7.08813461]
[1733258858813,2.14,229.11,229.07,7.08813461]
[1733258859209,2.14,229.11,229.08,2.1816]
[1733258859410,2.14,229.11,229.07,7.08813461]
[1733258859610,2.14,229.15,229.09,7.08813461]
[1733258859806,2.14,229.16,229.11,2.1813]
[1733258861009,2.14,229.16,229.12,2.1813]
[1733258861612,2.14,229.16,229.09,7.08813461]
[1733258861907,2.14,229.16,229.11,2.1814]
[1733258862507,2.1809,229.16,229.11,2.1814]
[1733258862713,2.14,229.15,229.11,2.1813]
[1733258862911,9.22813461,229.15,229.04,6.0403]
[1733258863215,7.08813461,229.13,229.08,2.1816]
[1733258863714,2.1811,229.14,229.08,2.1816]
[1733258863914,2.14,229.13,229.1,2.1814]
[1733258864116,2.14,229.14,229.06,7.08813461]
[1733258864411,2.14,229.14,229.04,3.9003]
[1733258864412,2.14,229.14,229.11,2.1813]
[1733258864810,2.14,229.14,229.08,7.08813461]
[1733258865015,2.14,229.14,229.11,2.1813]
[1733258867211,7.08813461,229.13,229.08,2.1816]
[1733258868119,7.08813461,229.13,229.09,2.1816]
[1733258869115,2.14,229.14,229.09,7.08813461]
[1733258870218,2.14,229.14,229.06,7.08813461]
[1733258870615,2.14,229.14,229.1,2.1814]
[1733258871010,2.14,229.14,229.08,7.08813461]
[1733258872814,36.42106692,229.25,229.1,7.08813461]
[1733258873014,7.08813461,229.19,229.1,7.08813461]
[1733258873216,9.22813461,229.19,229.1,7.08813461]
[1733258873412,9.22813461,229.19,229.15,2.1809]
[1733258873816,9.22813461,229.19,229.14,2.1811]
[1733258874318,7.08813461,229.17,229.14,2.1811]
[1733258875318,4.3206,229.19,229.12,2.1812]
[1733258875319,7.08813461,229.15,229.12,2.1812]
[1733258876023,7.08813461,229.15,229.09,2.1815]
[1733258876217,9.26913461,229.15,229.06,7.08813461]
[1733258876413,7.08813461,229.13,229.06,7.08813461]
[1733258876616,7.08813461,229.13,229.09,2.1815]
[1733258878724,2.14,229.14,229.09,2.1815]
[1733258879023,9.22813461,229.14,229.09,2.1815]
[1733258881326,9.22813461,229.14,229.1,2.1814]
[1733258881627,9.22813461,229.14,229.06,7.08813461]
[1733258881825,9.22813461,229.14,229.08,2.1816]
[1733258882022,9.22813461,229.14,229.04,3.9003]
[1733258882222,9.22813461,229.14,229.06,7.08813461]
[1733258882623,9.22813461,229.14,229.11,2.1813]
[1733258886424,9.22813461,229.14,229.06,7.08813461]
[1733258886625,9.22813461,229.14,229.13,2.1812]
[1733258886626,2.14,229.14,229.13,2.1812]
[1733258886926,2.14,229.14,229.08,7.08813461]
[1733258887329,2.14,229.17,229.08,7.08813461]
[1733258887729,2.14,229.17,229.14,2.181]
[1733258888434,2.14,229.17,229.13,2.1812]
[1733258889039,2.1802,229.24,229.17,2.1808]
[1733258889241,7.08813461,229.2,229.17,2.1808]
[1733258889435,7.08813461,229.22,229.17,2.1808]
[1733258891335,2.14,229.23,229.17,2.1808]
[1733258891336,7.08813461,229.2,229.17,2.1808]
[1733258891934,7.08813461,229.2,229.13,2.5856]
[1733258892135,7.08813461,229.2,229.18,2.1807]
[1733258892332,2.14,229.23,229.14,7.08813461]
[1733258892533,2.14,229.23,229.2,2.1804]
[1733258893935,7.08813461,229.22,229.17,2.1808]
[1733258894137,7.08813461,229.2,229.17,2.1808]
[1733258894542,7.08813461,229.2,229.15,2.1809]
[1733258894742,7.08813461,229.2,229.14,1.3525]
[1733258894944,2.14,229.22,229.14,1.3525]
[1733258895149,7.08813461,229.18,229.14,1.3525]
[1733258895549,7.08813461,229.2,229.14,1.3525]
[1733258895750,7.08813461,229.2,229.16,2.1809]
[1733258895950,7.08813461,229.2,229.14,1.3525]
[1733258896556,7.08813461,229.2,229.15,2.1809]
[1733258896749,2.14,229.26,229.16,7.08813461]
[1733258897046,9.22813461,229.25,229.16,7.08813461]
[1733258897253,7.08813461,229.23,229.19,2.1806]
[1733258897855,7.08813461,229.23,229.16,7.08813461]
[1733258898349,7.08813461,229.23,229.2,2.1805]
[1733258899151,7.08813461,229.23,229.19,2.1806]
[1733258899653,7.08813461,229.23,229.16,7.08813461]
[1733258899849,7.08813461,229.23,229.2,2.1805]
[1733258901551,7.08813461,229.23,229.16,7.08813461]
[1733258901850,7.08813461,229.19,229.13,2.5856]
[1733258902251,2.14,229.18,229.13,2.5856]
[1733258902454,7.08813461,229.17,229.13,2.5856]
[1733258902649,7.08813461,229.17,229.1,7.08813461]
[1733258902850,7.08813461,229.17,229.08,7.08813461]
[1733258903353,7.08813461,229.15,229.07,1.3044]
[1733258903549,7.08813461,229.15,229.07,8.39253461]
[1733258903747,9.26913461,229.15,229.09,2.1815]
[1733258903957,7.08813461,229.15,229.09,2.1815]
[1733258904158,7.08813461,229.15,229.07,8.39253461]
[1733258904360,9.26923461,229.15,229.07,8.39253461]
[1733258905054,7.08813461,229.13,229.02,2.6735]
[1733258905261,2.21522357,229.22,229.02,2.6735]
[1733258905262,7.08813461,229.11,229.02,2.6735]
[1733258905460,4.3595,229.28,229.03,7.08813461]
[1733258905461,13.09,229.27,229.03,7.08813461]
[1733258905649,7.08813461,229.11,229.03,7.08813461]
[1733258905854,2.14,229.1,229.05,2.1819]
[1733258906055,2.14,229.1,229.02,2.6735]
[1733258906253,2.14,229.1,229.03,7.08813461]
[1733258906456,2.14,229.1,229.05,2.1819]
[1733258906657,2.14,229.1,229.03,7.08813461]
[1733258907952,2.14,229.1,229.06,2.1818]
[1733258908551,2.14,229.1,229.04,2.1819]
[1733258909460,7.08813461,229.09,229.0,7.08813461]
[1733258909861,7.08813461,229.09,229.02,7.08813461]
[1733258910159,7.08813461,229.09,229.04,2.1819]
[1733258911257,7.08813461,229.09,229.03,2.182]
[1733258912564,7.08813461,229.09,229.04,2.182]
[1733258912861,2.14,229.1,229.03,7.08813461]
[1733258913657,2.14,229.1,229.05,2.1819]
[1733258916267,7.08813461,229.09,229.05,2.1819]
[1733258916467,2.14,229.1,229.05,2.1819]
[1733258916766,9.22813461,229.1,229.02,7.08813461]
[1733258917362,9.22813461,229.1,229.05,2.1819]
[1733258918767,9.22813461,229.1,229.06,2.1818]
[1733258919470,9.22813461,229.1,229.05,2.1819]
[1733258919671,9.22813461,229.1,229.01,7.08813461]
[1733258920063,7.08813461,229.06,229.02,2.1822]
[1733258920264,2.14,229.05,228.96,7.08813461]
[1733258920561,2.14,229.05,229.01,2.1823]
[1733258920965,2.14,229.05,228.96,7.08813461]
[1733258921369,7.08813461,229.04,228.96,7.08813461]
[1733258921768,2.14,229.05,228.98,7.08813461]
[1733258921968,2.14,229.05,229.0,2.1823]
[1733258922371,2.14,229.05,229.02,7.08813461]
[1733258922672,2.14,229.09,229.02,7.08813461]
[1733258923061,7.08813461,229.12,229.04,7.08813461]
[1733258923263,7.08813461,229.12,229.06,7.08813461]
[1733258923264,2.14,229.12,229.06,7.08813461]
[1733258923462,46.75085881,229.16,229.12,2.1812]
[1733258923670,39.6627242,229.16,229.1,7.08813461]
[1733258924168,2.14,229.17,229.12,7.08813461]
[1733258926973,2.14,229.17,229.15,2.1809]
[1733258927168,2.14,229.17,229.1,7.08813461]
[1733258927674,2.14,229.17,229.12,7.08813461]
[1733258927874,2.14,229.17,229.1,7.08813461]
[1733258928570,2.14,229.17,229.13,2.1811]
[1733258929775,2.14,229.17,229.11,7.08813461]
[1733258932471,2.14,229.17,229.13,2.1811]
[1733258932673,9.22813461,229.17,229.13,2.1811]
[1733258933071,9.22813461,229.17,229.06,3.9479]
[1733258933271,7.08813461,229.15,229.09,2.1816]
[1733258933475,7.08813461,229.15,229.06,11.03603461]
[1733258933675,7.08813461,229.15,229.09,2.1815]
[1733258933874,7.08813461,229.13,229.06,11.03603461]
[1733258935368,7.08813461,229.11,229.06,3.9479]
[1733258935571,9.22813461,229.11,229.06,3.9479]
[1733258936375,9.22813461,229.11,229.06,6.1297]
[1733258939078,9.22813461,229.11,229.06,3.9479]
[1733258939277,2.14,229.11,229.06,3.9479]
[1733258939985,2.14,229.11,229.08,2.1816]
[1733258940274,2.14,229.11,229.06,3.9479]
[1733258941276,2.14,229.11,229.07,2.1817]
[1733258941681,9.22813461,229.11,229.06,3.9479]
[1733258942677,7.08813461,229.13,229.06,3.9479]
[1733258942873,4.3583,229.36,229.09,7.08813461]
[1733258942874,7.08813461,229.17,229.09,7.08813461]
[1733258943073,2.14,229.19,229.09,7.08813461]
[1733258943274,2.14,229.19,229.14,2.181]
[1733258943579,7.08813461,229.18,229.14,2.181]
[1733258943778,4.3583,229.36,229.11,7.08813461]
[1733258943985,7.08813461,229.22,229.13,7.08813461]
[1733258944283,7.08813461,229.22,229.15,7.08813461]
[1733258945281,7.08813461,229.22,229.13,7.08813461]
[1733258945685,7.08813461,229.2,229.16,2.1809]
[1733258945981,7.08813461,229.18,229.11,7.08813461]
[1733258946583,7.08813461,229.18,229.14,2.1811]
[1733258946779,7.08813461,229.18,229.08,2.14]
[1733258946780,7.08813461,229.16,229.09,7.08813461]
[1733258947680,7.08813461,229.18,229.14,2.1811]
[1733258947885,7.08813461,229.18,229.06,3.9479]
[1733258947886,7.08813461,229.18,229.11,7.08813461]
[1733258948081,2.14,229.19,229.11,7.08813461]
[1733258948482,2.14,229.19,229.13,7.08813461]
[1733258948678,2.14,229.19,229.17,2.1808]
[1733258948882,2.14,229.19,229.11,7.08813461]
[1733258949079,7.08813461,229.18,229.11,7.08813461]
[1733258949285,7.08813461,229.18,229.09,7.08813461]
[1733258950590,7.08813461,229.18,229.11,7.08813461]
[1733258951084,2.14,229.19,229.13,7.08813461]
[1733258952485,2.14,229.19,229.17,2.1808]
[1733258952880,7.08813461,229.18,229.1,9.22813461]
[1733258953079,7.08813461,229.18,229.15,2.1809]
[1733258953392,2.14,229.19,229.15,2.1809]
[1733258954584,2.14,229.19,229.1,9.22813461]
[1733258955387,2.14,229.19,229.15,2.1809]
[1733258955888,7.08813461,229.18,229.15,2.1809]
[1733258956091,7.08813461,229.16,229.13,2.1812]
[1733258956286,7.08813461,229.16,229.07,7.08813461]
[1733258958083,7.08813461,229.16,229.12,2.1813]
[1733258959389,7.08813461,229.16,229.07,7.08813461]
[1733258959997,7.08813461,229.16,229.06,3.9479]